bitfinex/quotes_SOLUSD_20250126
["timestamp","ask_amount","ask_price","bid_price","bid_amount"]
[1737927231691,8.64535621,251.05,251.03,0.03]
[1737927231870,0.39656055,251.04,251.03,0.03]
[1737927233578,4.37996055,251.04,251.03,0.03]
[1737927234157,28.15684455,251.04,251.03,0.03]
[1737927234892,24.776884,251.03,250.92,8.1222]
[1737927235090,8.64535621,250.95,250.92,8.1222]
[1737927235390,0.39656055,250.94,250.89,0.03]
[1737927235590,12.63095621,250.9,250.89,0.03]
[1737927235760,8.64535621,250.9,250.89,0.03]
[1737927236157,8.64535621,250.94,250.89,0.03]
[1737927236697,0.39656055,250.93,250.89,0.03]
[1737927237089,8.64535621,250.9,250.89,0.03]
[1737927238263,0.39656055,250.96,250.89,0.03]
[1737927238591,8.64535621,250.97,250.89,0.03]
[1737927239465,8.64535621,250.95,250.89,0.03]
[1737927239661,8.64535621,250.97,250.89,0.03]
[1737927240265,0.39656055,250.99,250.89,0.03]
[1737927240468,8.64535621,251.02,250.9,6.5106]
[1737927240685,20.0,251.04,250.9,6.5106]
[1737927240686,8.64535621,251.04,250.9,6.5106]
[1737927241092,8.64535621,251.04,250.93,20.0]
[1737927241272,0.39656055,251.05,250.93,20.0]
[1737927241473,11.58535621,251.06,250.93,20.0]
[1737927241886,11.58535621,251.06,250.94,3.985]
[1737927242271,11.58535621,251.06,250.95,20.0]
[1737927242873,2.94,251.06,250.95,20.0]
[1737927243087,8.64535621,251.12,251.0,1.6116]
[1737927243598,8.64535621,251.12,251.02,6.5106]
[1737927243769,8.64535621,251.12,251.03,3.9835]
[1737927245986,0.39656055,251.11,251.02,6.5106]
[1737927246469,12.62755621,251.12,251.02,6.5106]
[1737927249902,12.62755621,251.12,251.02,10.4943]
[1737927250108,0.063,251.15,251.06,20.0]
[1737927250278,12.62715621,251.14,251.02,10.4943]
[1737927250478,8.64535621,251.12,251.02,6.5106]
[1737927250697,0.39656055,251.11,251.02,6.5106]
[1737927252001,12.62775621,251.1,251.02,6.5106]
[1737927252179,8.64535621,251.08,251.02,6.5106]
[1737927252378,0.39656055,251.07,251.02,6.5106]
[1737927252591,12.62775621,251.1,251.02,6.5106]
[1737927252790,0.39656055,251.09,251.02,6.5106]
[1737927254518,3.9827,251.08,251.02,6.5106]
[1737927255804,0.39656055,251.07,251.0,1.6116]
[1737927256192,8.64535621,251.06,251.0,1.6116]
[1737927256510,0.39656055,251.05,250.96,6.57]
[1737927257577,0.39656055,251.07,250.96,6.57]
[1737927258003,8.64535621,251.04,250.96,6.57]
[1737927258203,0.39656055,251.03,250.96,6.57]
[1737927259386,3.9831,251.06,250.96,6.57]
[1737927260882,0.45956055,251.09,250.96,10.5546]
[1737927261104,4.44226055,251.09,250.96,10.5546]
[1737927261810,0.063,251.09,250.97,23.776884]
[1737927262526,0.063,251.09,251.01,23.776884]
[1737927262887,0.063,251.09,251.02,3.9837]
[1737927263791,0.45956055,251.09,250.99,20.0]
[1737927263985,4.44226055,251.09,250.99,20.0]
[1737927268114,8.64535621,251.04,250.96,0.03]
[1737927268300,8.64535621,251.02,250.96,0.03]
[1737927268490,0.39656055,251.01,250.96,0.03]
[1737927269616,8.64535621,251.0,250.96,0.03]
[1737927269789,0.39656055,250.99,250.96,0.03]
[1737927270516,3.9841,251.0,250.96,0.03]
[1737927270682,4.38036055,251.02,250.96,0.03]
[1737927271020,3.9838,251.02,250.96,0.03]
[1737927271607,2.9,251.03,250.96,0.03]
[1737927271918,3.9832,251.06,250.96,0.03]
[1737927272316,0.39656055,251.05,250.96,0.03]
[1737927273514,3.9832,251.06,250.96,0.03]
[1737927273714,3.9829,251.08,250.96,0.03]
[1737927276617,3.9831,251.06,250.96,0.03]
[1737927277699,4.37926055,251.08,250.96,0.03]
[1737927279711,4.37926055,251.08,250.96,27.791484]
[1737927279916,4.37926055,251.08,250.96,4.0146]
[1737927280102,4.44226055,251.08,250.96,0.03]
[1737927280304,8.64535621,251.05,250.96,0.03]
[1737927282427,3.9834,251.04,250.96,0.03]
[1737927282733,4.0459,251.08,250.96,0.03]
[1737927284016,4.0459,251.08,250.98,20.0]
[1737927284225,4.0459,251.08,250.98,23.9842]
[1737927290539,0.063,251.08,251.01,23.776884]
[1737927291644,4.0458,251.08,251.0,6.1647]
[1737927291813,0.39656055,251.07,251.0,6.1647]
[1737927292731,3.9831,251.06,251.0,6.1647]
[1737927295524,0.39656055,251.05,250.98,0.03]
[1737927296430,8.64535621,251.03,250.98,0.03]
[1737927296638,0.39656055,251.02,250.98,0.03]
[1737927297344,0.39656055,251.02,250.96,0.03]
[1737927297345,20.0,250.97,250.96,0.03]
[1737927297550,31.94191676,250.97,250.95,0.0001]
[1737927298643,3.9846,250.96,250.95,0.0001]
[1737927300048,20.0,251.04,250.95,0.0001]
[1737927300225,0.39656055,251.03,250.95,0.0001]
[1737927300746,3.9837,251.02,250.95,0.0001]
[1737927300931,8.64535621,251.0,250.95,0.0001]
[1737927301131,0.39656055,250.99,250.95,0.0001]
[1737927301946,4.38026055,251.02,250.95,0.0001]
[1737927302148,3.9837,251.02,250.95,0.0001]
[1737927302530,9.04191676,251.01,250.95,0.0001]
[1737927302973,3.984,251.0,250.95,0.0001]
[1737927303271,0.39656055,250.99,250.95,0.0001]
[1737927303644,9.04191676,250.99,250.95,0.0001]
[1737927303967,3.9843,250.98,250.95,0.0001]
[1737927304166,0.39656055,250.97,250.95,0.0001]
[1737927305034,9.04191676,250.97,250.95,0.0001]
[1737927306051,3.9846,250.96,250.95,0.0001]
[1737927307977,4.38086055,250.98,250.95,0.0001]
[1737927309052,3.9846,250.96,250.95,0.0001]
[1737927309370,4.38116055,250.96,250.95,0.0001]
[1737927309954,28.15804455,250.96,250.95,0.0001]
[1737927311071,23.776884,250.92,250.77,28.0512]
[1737927311279,8.64535621,250.9,250.77,28.0512]
[1737927311571,20.0,250.9,250.77,28.0512]
[1737927311775,20.0,250.93,250.8,3.9872]
[1737927311983,0.39656055,250.92,250.8,3.9872]
[1737927312980,3.9854,250.91,250.78,3.9875]
[1737927313176,0.39656055,250.9,250.78,3.9875]
[1737927314275,9.04191676,250.9,250.78,3.9875]
[1737927314571,9.04191676,250.9,250.77,28.0512]
[1737927316074,9.04191676,250.9,250.77,32.0388]
[1737927317059,29.04191676,250.9,250.77,32.0388]
[1737927318178,29.04191676,250.9,250.77,20.03]
[1737927318376,52.81880076,250.9,250.77,20.03]
[1737927318573,13.9503,250.89,250.77,20.03]
[1737927318776,8.64535621,250.86,250.77,20.03]
[1737927318975,9.04191676,250.88,250.77,20.03]
[1737927319280,8.64535621,250.88,250.77,24.0176]
[1737927319863,8.64535621,250.88,250.77,20.03]
[1737927320267,3.9861,250.87,250.77,20.03]
[1737927321405,3.9861,250.87,250.77,24.0177]
[1737927322083,3.9859,250.89,250.77,24.0177]
[1737927322282,3.9859,250.89,250.78,1.5302]
[1737927322779,2.92,250.91,250.8,6.4047]
[1737927322953,6.9056,250.91,250.8,6.4047]
[1737927323590,2.92,250.91,250.81,3.987]
[1737927325186,5.55475185,250.93,250.81,3.987]
[1737927325488,5.55475185,250.96,250.83,20.0]
[1737927325692,9.53945185,250.96,250.82,24.0944262]
[1737927326989,9.53945185,250.96,250.83,3.9867]
[1737927327284,9.53945185,250.96,250.85,20.0]
[1737927327974,9.53945185,250.96,250.86,3.9862]
[1737927329263,9.53945185,250.96,250.87,1.6655]
[1737927329584,5.55475185,251.0,250.91,20.0]
[1737927329766,11.6868,251.09,250.91,20.0]
[1737927329767,5.55475185,251.02,250.91,20.0]
[1737927329977,5.55475185,251.02,250.92,3.9853]
[1737927330372,9.53855185,251.02,250.92,3.9853]
[1737927330579,8.67021857,251.01,250.92,3.9853]
[1737927330779,8.67021857,251.05,250.93,24.09428502]
[1737927331078,12.65311857,251.07,250.94,7.9612]
[1737927331269,12.65311857,251.07,250.95,0.31731254]
[1737927331472,12.65311857,251.07,250.94,7.9612]
[1737927332092,12.65311857,251.07,250.95,3.9848]
[1737927336094,12.65311857,251.07,250.94,7.9612]
[1737927336270,8.67021857,251.02,250.94,7.9612]
[1737927337081,8.67021857,250.97,250.94,7.9612]
[1737927337286,8.67021857,250.99,250.94,7.9612]
[1737927337494,8.67021857,250.99,250.86,7.9612]
[1737927337783,8.67021857,250.93,250.86,6.2957]
[1737927337986,8.67021857,250.93,250.77,20.03]
[1737927337987,8.67021857,250.91,250.8,27.9612]
[1737927338165,3.9856,250.9,250.8,7.9612]
[1737927338569,8.67021857,250.89,250.8,7.9612]
[1737927339196,8.67021857,250.89,250.88,0.03]
[1737927346106,8.67021857,250.85,250.77,20.03]
[1737927347301,20.0,250.86,250.77,20.03]
[1737927347302,8.67021857,250.83,250.77,20.03]
[1737927347998,3.9866,250.84,250.77,20.03]
[1737927348502,3.9863,250.86,250.77,20.03]
[1737927348801,8.67021857,250.87,250.77,24.0176]
[1737927349979,12.65631857,250.87,250.77,24.0176]
[1737927350175,12.65631857,250.87,250.78,7.7952]
[1737927351891,2.9,250.9,250.78,12.10022853]
[1737927352689,2.584477,250.9,250.78,12.10022853]
[1737927352877,6.570177,250.9,250.78,12.10022853]
[1737927353285,3.9857,250.9,250.78,12.10022853]
[1737927354892,8.43347361,250.93,250.8,3.9872]
[1737927355096,8.43347361,250.93,250.8,4.30473206]
[1737927356319,3.9853,250.92,250.82,20.0]
[1737927357008,5.55347361,250.95,250.83,24.09441224]
[1737927357218,9.53837361,250.95,250.83,23.776884]
[1737927358485,9.53837361,250.95,250.84,3.9866]
[1737927358935,9.53837361,250.95,250.82,3.9868]
[1737927359307,5.55347361,250.93,250.81,20.0]
[1737927361004,3.9853,250.92,250.81,20.0]
[1737927361616,3.9853,250.92,250.81,23.9869]
[1737927361986,3.9853,250.92,250.81,20.0]
[1737927365217,3.9853,250.92,250.81,20.03]
[1737927365403,4.0483,250.92,250.81,20.03]
[1737927365605,5.55347361,250.89,250.81,0.03]
[1737927365801,5.55347361,250.87,250.81,0.03]
[1737927366026,5.55347361,250.85,250.81,0.03]
[1737927367722,3.9866,250.84,250.81,0.03]
[1737927368312,5.55347361,250.87,250.81,0.03]
[1737927368313,5.55347361,250.89,250.81,0.03]
[1737927368625,9.53887361,250.91,250.81,0.03]
[1737927373601,5.55347361,250.89,250.81,0.03]
[1737927373800,5.55347361,250.87,250.81,0.03]
[1737927374995,5.55347361,250.83,250.81,0.03]
[1737927375333,5.55347361,250.83,250.77,20.03]
[1737927375334,20.0,250.8,250.77,20.03]
[1737927375625,5.55347361,250.78,250.65,6.4764]
[1737927375833,5.55347361,250.75,250.65,6.4764]
[1737927376521,5.55347361,250.77,250.65,6.4764]
[1737927376722,3.9875,250.78,250.65,10.4659]
[1737927376913,3.9875,250.78,250.66,23.776884]
[1737927377114,3.9875,250.78,250.66,0.31778594]
[1737927377323,3.9875,250.78,250.68,20.0]
[1737927378130,5.55347361,250.77,250.65,6.4764]
[1737927378524,3.9878,250.76,250.65,6.4764]
[1737927378910,3.9878,250.76,250.66,20.0]
[1737927381833,3.9878,250.76,250.64,24.30749798]
[1737927382043,3.9878,250.76,250.65,8.0977]
[1737927382611,3.9878,250.76,250.65,12.0872]
[1737927382940,5.55347361,250.75,250.65,8.0977]
[1737927383952,3.9881,250.74,250.65,8.0977]
[1737927384428,5.55347361,250.7,250.59,0.31782586]
[1737927384743,5.55347361,250.7,250.59,4.30832586]
[1737927385038,5.55347361,250.7,250.59,3.9905]
[1737927385944,3.9889,250.69,250.57,3.9909]
[1737927386141,3.9889,250.69,250.58,0.31789586]
[1737927386348,5.55347361,250.68,250.58,0.31789586]
[1737927386721,5.55347361,250.68,250.57,3.9909]
[1737927386921,5.55347361,250.68,250.55,12.43659607]
[1737927387122,5.55347361,250.68,250.56,0.08640598]
[1737927387339,5.55347361,250.58,250.55,0.03]
[1737927387540,5.55347361,250.6,250.55,0.03]
[1737927387723,2.86,250.63,250.55,0.03]
[1737927388430,1.5166,250.69,250.57,20.0]
[1737927388431,5.55347361,250.68,250.57,20.0]
[1737927388639,11.57149181,250.73,250.58,1.3179144]
[1737927388836,11.57149181,250.73,250.58,0.3179144]
[1737927389030,8.69149181,250.71,250.58,0.3179144]
[1737927389237,8.69149181,250.71,250.59,0.03]
[1737927390136,8.69149181,250.71,250.59,24.33837166]
[1737927390652,12.68019181,250.71,250.59,4.33837166]
[1737927390852,8.69149181,250.65,250.59,0.03]
[1737927393054,8.69149181,250.67,250.59,0.03]
[1737927393433,8.69149181,250.69,250.59,0.03]
[1737927394859,8.69149181,250.69,250.6,20.0]
[1737927395056,8.69149181,250.71,250.61,7.0408]
[1737927395228,8.69149181,250.73,250.62,0.31780178]
[1737927395435,8.69149181,250.75,250.62,0.31780178]
[1737927396530,8.69149181,250.73,250.63,3.9899]
[1737927397761,8.69149181,250.71,250.63,3.9899]
[1737927398759,8.69149181,250.71,250.61,10.0309]
[1737927399144,8.69149181,250.71,250.62,0.31783485]
[1737927399339,8.69149181,250.73,250.62,0.31783485]
[1737927399956,12.67979181,250.73,250.63,3.9899]
[1737927400161,3.9883,250.73,250.63,3.9899]
[1737927400470,8.69149181,250.75,250.63,3.9899]
[1737927400471,12.67959181,250.75,250.64,0.31778709]
[1737927401662,0.063,250.73,250.65,3.9896]
[1737927401845,0.063,250.73,250.66,0.31776716]
[1737927402953,0.063,250.73,250.66,4.30716716]
[1737927404958,0.063,250.73,250.66,0.31776716]
[1737927405165,0.063,250.73,250.65,0.31776944]
[1737927405747,8.69149181,250.69,250.65,0.31776944]
[1737927406055,8.69149181,250.67,250.61,20.0]
[1737927406253,8.69149181,250.63,250.55,0.03]
[1737927407138,3.9901,250.62,250.55,0.03]
[1737927408243,11.57149181,250.65,250.55,0.34794869]
[1737927408653,2.88,250.65,250.55,20.34794869]
[1737927408857,2.88,250.65,250.55,0.34794869]
[1737927409537,1.04239777,250.65,250.55,0.34794869]
[1737927410366,1.04239777,250.65,250.56,3.991]
[1737927411267,1.04239777,250.65,250.57,0.31789759]
[1737927412068,1.04239777,250.65,250.59,0.34788264]
[1737927412366,1.04239777,250.65,250.59,4.33838264]
[1737927412547,1.04239777,250.65,250.59,0.34788264]
[1737927412750,8.69149181,250.64,250.59,0.03]
[1737927413658,8.69149181,250.63,250.59,0.03]
[1737927414460,12.68139181,250.63,250.59,0.03]
[1737927417270,3.9899,250.63,250.59,0.03]
[1737927417473,0.063,250.65,250.59,0.03]
[1737927417779,4.0526,250.65,250.59,0.03]
[1737927418155,12.74409181,250.65,250.59,0.03]
[1737927419278,4.0526,250.65,250.59,0.03]
[1737927421155,0.063,250.65,250.59,0.03]
[1737927421576,0.063,250.65,250.59,0.34789027]
[1737927423175,12.74419181,250.65,250.59,0.03]
[1737927424567,5.56577855,250.64,250.59,0.03]
[1737927424888,3.9899,250.63,250.59,0.03]
[1737927428962,3.9897,250.64,250.59,0.03]
[1737927429987,0.063,250.65,250.63,8.802]
[1737927430191,0.063,250.65,250.64,0.31773413]
[1737927430686,0.063,250.65,250.63,7.802]
[1737927431183,4.0527,250.65,250.59,0.03]
[1737927431586,5.56577855,250.63,250.59,0.03]
[1737927432586,8.69768782,250.63,250.59,0.03]
[1737927432987,3.9901,250.62,250.59,0.03]
[1737927433483,3.9898,250.64,250.59,0.03]
[1737927434010,0.063,250.65,250.59,0.03]
[1737927434888,20.0,250.63,250.59,0.03]
[1737927435391,23.99,250.63,250.59,0.03]
[1737927436477,8.69768782,250.6,250.59,0.03]
[1737927437177,3.9904,250.6,250.59,0.03]
[1737927438388,8.69768782,250.6,250.59,0.03]
[1737927438572,12.68778782,250.62,250.59,0.03]
[1737927441691,12.68778782,250.62,250.59,0.01]
[1737927441692,3.9901,250.62,250.59,0.01]
[1737927446378,12.68778782,250.62,250.59,0.01]
[1737927447484,8.69768782,250.6,250.59,0.01]
[1737927448689,12.68808782,250.6,250.59,0.01]
[1737927450197,3.9904,250.6,250.59,0.01]
[1737927450775,3.9902,250.62,250.59,0.01]
[1737927452477,20.0,250.63,250.59,0.01]
[1737927455010,8.69768782,250.62,250.59,0.01]
[1737927456589,3.9902,250.61,250.59,0.01]
[1737927459414,8.69768782,250.6,250.59,0.01]
[1737927460608,5.5682317,250.6,250.59,0.01]
[1737927462615,8.70058782,250.6,250.59,0.01]
[1737927468312,12.69098782,250.6,250.59,0.01]
[1737927472000,3.9904,250.6,250.59,0.01]
[1737927472208,8.70058782,250.62,250.59,0.01]
[1737927472512,12.69078782,250.62,250.59,0.01]
[1737927473014,20.0,250.63,250.59,0.01]
[1737927478122,23.9899,250.63,250.59,0.01]
[1737927481811,8.70058782,250.61,250.59,0.01]
[1737927482326,3.9904,250.6,250.59,0.01]
[1737927482625,9.55826883,250.6,250.59,0.01]
[1737927484112,3.9904,250.6,250.59,0.01]
[1737927486230,4.0534,250.6,250.59,0.01]
[1737927490430,0.063,250.6,250.59,0.01]
[1737927493246,0.063,250.6,250.59,1.99370282]
[1737927495034,0.063,250.6,250.59,1.6758]
[1737927495844,0.063,250.6,250.59,25.452684]
[1737927496049,0.063,250.6,250.59,31.81122781]
[1737927501830,0.063,250.6,250.59,0.01]
[1737927510355,5.63086883,250.6,250.59,0.01]
[1737927513245,9.62126883,250.6,250.59,0.01]
[1737927528157,39.54936883,250.6,250.51,1.5304381]
[1737927528367,5.56786883,250.53,250.51,3.81e-05]
[1737927530047,3.9916,250.52,250.48,3.81e-05]
[1737927530258,5.56786883,250.5,250.48,3.81e-05]
[1737927530869,9.55946883,250.52,250.48,3.81e-05]
[1737927532159,3.9916,250.52,250.48,3.81e-05]
[1737927533678,3.9916,250.52,250.48,0.0300381]
[1737927535762,5.56786883,250.52,250.48,0.0300381]
[1737927536980,3.9918,250.51,250.48,0.0300381]
[1737927537671,5.56786883,250.49,250.48,0.0300381]
[1737927538782,9.55996883,250.49,250.48,0.0300381]
[1737927539694,9.55996883,250.49,250.48,3.81e-05]
[1737927541594,20.0,250.46,250.24,27.3337]
[1737927541758,5.56786883,250.39,250.25,0.31837783]
[1737927542254,5.56786883,250.41,250.27,20.0]
[1737927542464,5.56786883,250.41,250.27,20.31838247]
[1737927543757,13.9776,250.4,250.27,20.31838247]
[1737927543958,5.56786883,250.39,250.27,0.31838247]
[1737927544155,5.56786883,250.37,250.27,0.31840505]
[1737927544357,5.56786883,250.37,250.24,6.3337]
[1737927544358,5.56786883,250.37,250.24,6.65216192]
[1737927544581,5.56786883,250.37,250.25,1.5421]
[1737927544754,13.9776,250.4,250.25,1.5421]
[1737927544755,5.56786883,250.39,250.26,0.31842197]
[1737927544960,5.56786883,250.39,250.26,24.09530597]
[1737927545283,5.56786883,250.39,250.25,1.36052197]
[1737927545661,3.9939,250.38,250.26,24.776884]
[1737927545861,3.9939,250.38,250.26,25.776884]
[1737927546184,3.9939,250.38,250.26,24.776884]
[1737927547685,9.9832,250.42,250.26,24.776884]
[1737927547686,3.9932,250.42,250.3,24.776884]
[1737927547890,3.9932,250.42,250.34,6.0728]
[1737927548388,13.9764,250.42,250.34,6.0728]
[1737927549461,5.56786883,250.41,250.27,6.0728]
[1737927549983,5.56786883,250.41,250.28,23.776884]
[1737927551284,5.56786883,250.41,250.27,6.0728]
[1737927551457,5.56786883,250.39,250.27,6.0728]
[1737927551661,13.9787,250.38,250.27,6.0728]
[1737927554493,13.9787,250.38,250.28,23.776884]
[1737927554666,3.9939,250.38,250.28,28.772284]
[1737927555085,3.9939,250.38,250.3,1.0]
[1737927555274,3.9932,250.42,250.3,1.0]
[1737927555988,3.9932,250.42,250.28,28.772284]
[1737927555989,3.9932,250.42,250.33,1.0]
[1737927557102,15.54916883,250.47,250.33,1.0]
[1737927557396,3.9926,250.46,250.33,1.0]
[1737927558280,9.56046883,250.46,250.34,3.9945]
[1737927558571,5.56786883,250.41,250.31,1.0]
[1737927558995,5.56786883,250.41,250.32,23.776884]
[1737927559598,5.56786883,250.43,250.32,23.776884]
[1737927560395,3.9932,250.42,250.32,27.771684]
[1737927560579,3.9932,250.42,250.33,1.0]
[1737927560780,3.9926,250.46,250.35,1.0]
[1737927561504,3.9926,250.46,250.34,23.776884]
[1737927562191,3.9926,250.46,250.35,1.0]
[1737927565915,3.9926,250.46,250.36,23.776884]
[1737927566093,3.9926,250.46,250.37,1.0]
[1737927567399,3.9926,250.46,250.39,23.776884]
[1737927567716,0.063,250.48,250.4,1.0]
[1737927568012,0.063,250.48,250.41,24.776884]
[1737927569909,0.063,250.48,250.41,28.770284]
[1737927570311,0.063,250.48,250.43,1.0]
[1737927570516,0.063,250.48,250.44,23.776884]
[1737927571026,0.063,250.46,250.44,23.776884]
[1737927571516,0.063,250.46,250.38,7.661]
[1737927571703,0.063,250.46,250.38,6.661]
[1737927572200,3.9928,250.45,250.38,6.661]
[1737927572506,0.063,250.46,250.42,21.0]
[1737927573817,0.063,250.46,250.43,23.776884]
[1737927575621,0.063,250.46,250.44,1.0]
[1737927579528,0.063,250.46,250.42,20.0]
[1737927580016,0.063,250.46,250.45,43.776884]
[1737927580715,0.063,250.46,250.45,23.776884]
[1737927582618,0.063,250.46,250.41,20.0]
[1737927582798,4.0557,250.46,250.41,20.0]
[1737927582998,4.0557,250.46,250.39,23.776884]
[1737927584027,5.56786883,250.45,250.32,7.661]
[1737927584328,5.56786883,250.45,250.32,6.661]
[1737927584691,5.56786883,250.45,250.33,23.776884]
[1737927584896,5.56786883,250.45,250.32,6.661]
[1737927586122,13.9753,250.44,250.32,6.661]
[1737927586800,5.56786883,250.43,250.33,23.776884]
[1737927586999,5.56786883,250.41,250.28,20.0]
[1737927587235,1.6343,250.4,250.28,20.0]
[1737927587529,1.6343,250.4,250.29,23.776884]
[1737927587831,5.56786883,250.39,250.27,0.03]
[1737927588123,13.9787,250.38,250.27,0.03]
[1737927593927,13.9798,250.36,250.27,0.03]
[1737927595949,1.6343,250.35,250.27,0.03]
[1737927597929,3.9945,250.34,250.27,0.03]
[1737927598745,13.9809,250.34,250.27,0.03]
[1737927600552,3.9945,250.34,250.27,0.03]
[1737927602842,13.9809,250.34,250.27,0.03]
[1737927610460,14.0439,250.34,250.27,0.03]
[1737927615954,4.0575,250.34,250.27,0.03]
[1737927616839,14.0439,250.34,250.27,0.03]
[1737927617759,5.56786883,250.32,250.27,0.03]
[1737927618148,3.995,250.31,250.27,0.03]
[1737927626469,3.995,250.31,250.27,0.0001]
[1737927626470,25.56786883,250.28,250.27,0.0001]
[1737927626764,20.0,250.27,250.09,21.0]
[1737927626956,37.17946883,250.3,250.14,23.776884]
[1737927627771,7.17946883,250.3,250.14,23.776884]
[1737927628066,13.9837,250.29,250.16,23.776884]
[1737927633059,5.56786883,250.28,250.16,23.776884]
[1737927633855,5.56786883,250.26,250.16,23.776884]
[1737927635287,3.996,250.25,250.16,23.806884]
[1737927636573,5.56786883,250.25,250.16,0.03]
[1737927636779,5.56786883,250.25,250.12,1.0]
[1737927638266,13.9865,250.24,250.13,23.776884]
[1737927638461,19.55436883,250.24,250.13,23.776884]
[1737927639579,5.56786883,250.23,250.13,23.776884]
[1737927641782,3.9964,250.22,250.13,23.776884]
[1737927642375,9.56426883,250.22,250.13,23.776884]
[1737927643596,19.55546883,250.22,250.13,23.776884]
[1737927645785,5.56786883,250.23,250.13,23.776884]
[1737927646090,13.9848,250.27,250.16,1.0]
[1737927646388,13.9848,250.27,250.14,7.6907]
[1737927646887,5.56786883,250.26,250.14,7.6907]
[1737927647185,5.56786883,250.22,250.09,1.0]
[1737927647365,13.9848,250.27,250.08,1.6538]
[1737927647366,5.56786883,250.2,250.08,1.6538]
[1737927647564,5.56786883,250.2,250.13,0.03]
[1737927647888,33.9632,250.27,250.13,0.03]
[1737927647889,13.9882,250.21,250.13,0.03]
[1737927651077,5.56786883,250.2,250.13,0.03]
[1737927653001,13.9893,250.19,250.13,0.03]
[1737927654388,5.63086883,250.28,250.14,6.0369]
[1737927654570,3.9956,250.27,250.15,23.776884]
[1737927655967,13.9849,250.27,250.15,23.776884]
[1737927656887,13.986,250.25,250.15,23.776884]
[1737927657566,5.56786883,250.21,250.14,6.0369]
[1737927658384,5.56786883,250.22,250.13,0.03]
[1737927658589,5.56786883,250.24,250.13,0.03]
[1737927658972,13.9871,250.23,250.13,0.03]
[1737927659797,3.9963,250.23,250.14,31.108884]
[1737927659962,3.9963,250.23,250.14,30.108884]
[1737927660793,3.996,250.25,250.14,30.108884]
[1737927661373,13.986,250.25,250.14,30.108884]
[1737927663094,13.986,250.25,250.15,1.0]
[1737927664189,4.0587,250.27,250.19,1.0]
[1737927664586,4.0587,250.27,250.2,23.776884]
[1737927664987,5.56786883,250.26,250.14,6.332]
[1737927665593,3.996,250.25,250.15,23.776884]
[1737927665895,13.986,250.25,250.15,23.776884]
[1737927667295,5.56786883,250.24,250.14,6.332]
[1737927669206,13.9871,250.23,250.15,23.776884]
[1737927670704,13.9871,250.23,250.13,23.806884]
[1737927671901,5.56786883,250.22,250.13,0.03]
[1737927673403,9.9908,250.23,250.13,0.03]
[1737927674305,13.9871,250.23,250.13,0.03]
[1737927676800,5.56786883,250.22,250.13,0.03]
[1737927677007,13.9882,250.21,250.13,0.03]
[1737927681100,5.56786883,250.2,250.13,0.03]
[1737927681305,5.56786883,250.18,250.13,0.03]
[1737927682512,3.9972,250.17,250.13,0.03]
[1737927683289,5.56786883,250.15,250.03,20.0]
[1737927683488,19.55826883,250.17,250.04,1.0]
[1737927683886,19.55826883,250.17,250.05,23.776884]
[1737927684223,13.9904,250.17,250.13,0.03]
[1737927688090,5.56786883,250.15,250.13,0.03]
[1737927689416,3.9977,250.14,250.13,0.03]
[1737927692618,9.9932,250.17,250.13,0.03]
[1737927696320,14.0534,250.17,250.13,0.03]
[1737927705128,19.62126883,250.17,250.13,0.03]
[1737927705515,14.0534,250.17,250.13,0.03]
[1737927709533,4.0602,250.17,250.13,0.03]
[1737927709748,0.063,250.17,250.13,23.806884]
[1737927710430,4.0603,250.17,250.13,0.03]
[1737927715513,0.063,250.17,250.14,23.776884]